[Event "48th Indian U15-ch Open 2023"]
[Site "Jalgaon"]
[Date "2024.02.04"]
[Round "11.9"]
[White "Bhuvan Krishna Prasanth"]
[Black "Vignesh Advaith Vemula"]
[Result "1/2-1/2"]
[ECO "B52"]
[WhiteElo "1595"]
[BlackElo "2028"]
[Annotator "RC"]
[PlyCount "71"]
[EventDate "2023.12.30"]
[EventType "swiss"]
[EventCountry "IND"]
[SourceTitle "playchess.com"]
[Source "ChessBase"]
[SourceQuality "1"]
[TimeControl "5400+30"]

1. e4 {[%emt 0:00:03]} c5 {[%emt 0:00:05]} 2. Nf3 {[%emt 0:00:06]} d6 {[%emt 0:00:05]} 3. Bb5+ {[%emt 0:00:07]} Bd7 {[%emt 0:00:13]} 4. Bxd7+ {[%emt 0:00:07]} Qxd7 {[%emt 0:00:03]} 5. O-O {[%emt 0:00:12]} Nf6 {[%emt 0:00:21]} 6. Re1 {[%emt 0:03:07]} Nc6 {[%emt 0:00:06]} 7. c3 {[%emt 0:04:05]} e6 {[%emt 0:00:08]} 8. d4 {[%emt 0:00:05]} cxd4 {[%emt 0:00:04]} 9. cxd4 {[%emt 0:00:06]} d5 {[%emt 0:00:04]} 10. e5 {[%emt 0:04:27]} Ne4 {[%emt 0:00:05]} 11. Nc3 {[%emt 0:00:06]} Nxc3 {[%emt 0:00:05]} 12. bxc3 {[%emt 0:00:05]} Be7 {[%emt 0:00:06]} 13. Nd2 {[%emt 0:04:41]} O-O {[%emt 0:02:00]} 14. Qg4 {[%emt 0:00:18]} Rac8 {[%emt 0:11:02]} 15. Nb3 {[%emt 0:00:12]} f5 {[%emt 0:00:20]} 16. exf6 {[%emt 0:01:53]} Rxf6 {[%emt 0:00:06]} 17. Bf4 {[%emt 0:00:19]} Rcf8 {[%emt 0:00:46]} 18. Bg3 {[%emt 0:00:08]} Rg6 {[%emt 0:02:56]} 19. Qe2 {[%emt 0:08:59]} Rf5 {[%emt 0:00:12]} 20. Nc1 {[%emt 0:03:10]} h5 {[%emt 0:05:39]} 21. Nd3 {[%emt 0:06:09]} h4 {[%emt 0:00:40]} 22. Be5 {[%emt 0:07:10]} Rfg5 {[%emt 0:00:38]} 23. Nf4 {[%emt 0:00:38]} Nxe5 {[%emt 0:02:15]} 24. dxe5 {[%emt 0:00:07]} Rh6 {[%emt 0:00:11]} 25. Kh1 {[%emt 0:01:28]} Qc7 {[%emt 0:01:30]} 26. Rac1 {[%emt 0:09:23]} Rf5 {[%emt 0:08:31]} 27. Nh3 {[%emt 0:02:18]} Bg5 {[%emt 0:00:15]} 28. Nxg5 {[%emt 0:00:40]} Rxg5 {[%emt 0:00:04]} 29. f4 {[%emt 0:03:32]} Rf5 {[%emt 0:00:04]} 30. c4 {[%emt 0:00:07]} d4 {[%emt 0:04:47]} 31. Qe4 {[%emt 0:00:33]} Qf7 {[%emt 0:00:08]} 32. Rf1 {[%emt 0:01:20]} g5 {[%emt 0:05:53]} 33. Qxd4 {[%emt 0:00:08]} gxf4 {[%emt 0:00:04]} 34. Qd8+ {[%emt 0:01:52]} Kg7 {[%emt 0:02:16]} 35. Rcd1 {[%emt 0:00:28]} Rh8 {[%emt 0:00:07]} 36. Qd4 {[%emt 0:00:54]} 1/2-1/2

[Event "48th Indian U15-ch Open 2023"]
[Site "Jalgaon"]
[Date "2024.02.04"]
[Round "11.10"]
[White "Ankit Ray"]
[Black "Mokshith, Pasupulety"]
[Result "1-0"]
[ECO "D02"]
[WhiteElo "1898"]
[BlackElo "1478"]
[Annotator "NA RC"]
[PlyCount "39"]
[EventDate "2023.12.30"]
[EventType "swiss"]
[EventCountry "IND"]
[SourceTitle "playchess.com"]
[Source "ChessBase"]
[SourceQuality "1"]
[TimeControl "5400+30"]

1. Nf3 {[%emt 0:00:04]} d5 {[%emt 0:00:05]} 2. g3 {[%emt 0:00:06]} Nd7 {[%emt 0:00:06]} 3. d4 {[%emt 0:00:06]} Nb6 {[%emt 0:00:05]} 4. Nc3 {[%emt 0:00:08]} Bf5 {[%emt 0:00:25]} 5. Nh4 {[%emt 0:00:24]} e6 {[%emt 0:02:21]} 6. Nxf5 {[%emt 0:01:14]} exf5 {[%emt 0:00:10]} 7. Bg2 {[%emt 0:00:06]} c6 {[%emt 0:00:22]} 8. a4 {[%emt 0:00:21]} a5 {[%emt 0:00:46]} 9. O-O {[%emt 0:00:13]} Nf6 {[%emt 0:01:03]} 10. Qd3 {[%emt 0:06:24]} g6 {[%emt 0:04:28]} 11. b3 {[%emt 0:01:15]} Ne4 {[%emt 0:05:27]} 12. Qe3 {[%emt 0:09:27]} Be7 {[%emt 0:03:47]} 13. Nxe4 {[%emt 0:07:31]} fxe4 {[%emt 0:01:29]} 14. f3 {[%emt 0:01:21]} exf3 {[%emt 0:16:25]} 15. Qxf3 {[%emt 0:01:31]} f5 {[%emt 0:03:29]} 16. g4 {[%emt 0:01:22]} O-O {[%emt 0:00:12]} 17. Bh6 {[%emt 0:00:45]} Rf7 {[%emt 0:09:15]} 18. gxf5 {[%emt 0:01:15]} Rxf5 {[%emt 0:00:28]} 19. Qg4 {[%emt 0:01:59]} Bf6 {[%emt 0:08:36]} 20. Rxf5 {[%emt 0:01:09]} 1-0